fUST/lending_fUST_20250227
["ID","MTS","AMOUNT","RATE_DAILY","PERIOD"]
[354741011,1740661840025,-1000.0,0.00049315,2]
[354741012,1740661840035,-500.0,0.00049315,120]
[354741014,1740661840045,-500.0,0.00049315,120]
[354741015,1740661840055,-500.0,0.00049315,120]
[354741016,1740661840066,-500.0,0.00049315,120]
[354741017,1740661840076,-500.0,0.00049315,120]
[354741018,1740661840085,-500.0,0.00049315,120]
[354741019,1740661840095,-500.0,0.00049315,120]
[354741020,1740661840104,-558.33,0.00049315,120]
[354741021,1740661840120,-500.0,0.00049315,120]
[354741022,1740661840130,-500.0,0.00049315,120]
[354741023,1740661840139,-1980.75,0.00049315,120]
[354741024,1740661840148,-500.0,0.00049315,120]
[354741025,1740661840158,-500.0,0.00049315,120]
[354741026,1740661840167,-500.0,0.00049315,120]
[354741027,1740661840177,-500.0,0.00049315,120]
[354741028,1740661840186,-500.0,0.00049315,120]
[354741029,1740661840195,-500.0,0.00049315,120]
[354741030,1740661840205,-500.0,0.00049315,120]
[354741031,1740661840215,-811.27,0.00049315,120]
[354741032,1740661840224,-500.0,0.00049315,120]
[354741033,1740661840234,-500.0,0.00049315,120]
[354741034,1740661840243,-517.51843689,0.00049315,2]
[354741035,1740661840252,-2402.32,0.00049315,6]
[354741036,1740661840261,-500.0,0.00049315,120]
[354741037,1740661840271,-500.0,0.00049315,120]
[354741038,1740661840280,-500.0,0.00049315,120]
[354741039,1740661840289,-500.0,0.00049315,120]
[354741040,1740661840299,-500.0,0.00049315,120]
[354741041,1740661840308,-500.0,0.00049315,120]
[354741042,1740661840317,-500.0,0.00049315,120]
[354741043,1740661840326,-1624.97,0.00049315,120]
[354741044,1740661840335,-500.0,0.00049315,2]
[354741045,1740661840344,-500.0,0.00049315,120]
[354741046,1740661840353,-623.67128849,0.00049373,2]
[354741047,1740661840363,-501.06823991,0.00049373,2]
[354741048,1740661840372,-500.0,0.00049373,10]
[354741049,1740661840381,-500.0,0.00049373,10]
[354741050,1740661840390,-514.41243006,0.00049373,10]
[354741051,1740661840400,-584.93169002,0.00049373,10]
[354741052,1740661840410,-500.0,0.00049573,10]
[354741053,1740661840419,-500.0,0.00049573,10]
[354741054,1740661840428,-500.0,0.00049573,10]
[354741055,1740661840438,-500.0,0.00049573,10]
[354741056,1740661840447,-500.0,0.00049573,10]
[354741057,1740661840456,-500.0,0.00049573,7]
[354741058,1740661840465,-122866.07923884,0.00049589,33]
[354741059,1740661840474,-1163.9936881,0.00049589,33]
[354741060,1740661840483,-500.0,0.00049589,120]
[354741061,1740661840493,-500.0,0.00049589,120]
[354741062,1740661840502,-500.0,0.00049589,120]
[354741063,1740661840511,-2000.0,0.00049589,120]
[354741064,1740661840520,-500.0,0.00049589,120]
[354741065,1740661840529,-500.0,0.00049589,120]
[354741066,1740661840539,-500.0,0.00049589,120]
[354741067,1740661840548,-500.0,0.00049589,120]
[354741068,1740661840557,-875.0,0.00049589,2]
[354741069,1740661840566,-500.0,0.00049589,120]
[354741070,1740661840576,-500.0,0.00049589,120]
[354741071,1740661840585,-500.0,0.00049589,120]
[354741072,1740661840595,-500.00096551,0.00049589,120]
[354741073,1740661840604,-500.0,0.00049589,120]
[354741074,1740661840613,-500.0,0.00049589,120]
[354741075,1740661840622,-501.6194,0.00049589,120]
[354741076,1740661840631,-361.01,0.00049589,120]
[354741077,1740661840641,-500.0,0.00049589,120]
[354741078,1740661840651,-500.0,0.00049589,120]
[354741079,1740661840661,-586.12,0.00049589,120]
[354741080,1740661840671,-319.49,0.00049589,120]
[354741081,1740661840680,-500.0,0.00049589,120]
[354741082,1740661840690,-159.09,0.00049589,120]
[354741083,1740661840699,-500.0,0.00049589,120]
[354741084,1740661840708,-500.0,0.00049589,120]
[354741085,1740661840717,-295.66,0.00049589,120]
[354741086,1740661840727,-500.0,0.00049589,120]
[354741087,1740661840737,-500.0,0.00049589,120]
[354741088,1740661840746,-396.66,0.00049589,120]
[354741089,1740661840756,-500.0,0.00049589,120]
[354741090,1740661840765,-500.0,0.00049589,120]
[354741092,1740661840774,-500.0,0.00049589,120]
[354741093,1740661840783,-500.0,0.00049589,120]
[354741094,1740661840793,-500.0,0.00049589,120]
[354741095,1740661840802,-433.24598367,0.00049589,120]
[354741096,1740661840811,-500.0,0.00049589,120]
[354741097,1740661840821,-2365.65,0.00049589,120]
[354741098,1740661840830,-500.0,0.00049589,120]
[354741099,1740661840839,-477.36,0.00049589,120]
[354741100,1740661840848,-1946.76,0.00049589,120]
[354741101,1740661840858,-417.32,0.00049589,120]
[354741102,1740661840867,-899.95,0.00049589,120]
[354741103,1740661840876,-500.0,0.00049589,120]
[354741104,1740661840886,-944.27,0.00049589,120]
[354741105,1740661840896,-500.0,0.00049589,120]
[354741106,1740661840905,-500.0,0.00049589,120]
[354741107,1740661840915,-500.0,0.00049589,120]
[354741108,1740661840924,-3143.02,0.00049589,120]
[354741109,1740661840933,-2425.78,0.00049589,120]
[354741110,1740661840943,-18013.26,0.00049589,7]
[354741111,1740661840952,-500.0,0.00049589,120]
[354741112,1740661840962,-500.0,0.00049589,120]
[354741113,1740661840971,-1184.37,0.00049589,120]
[354741114,1740661840980,-500.0,0.00049589,120]
[354741115,1740661840990,-500.0,0.00049589,120]
[354741116,1740661840999,-587.8,0.00049589,120]
[354741117,1740661841009,-937.16,0.00049589,120]
[354741118,1740661841018,-500.0,0.00049589,120]
[354741119,1740661841027,-726.94,0.00049589,120]
[354741120,1740661841036,-500.0,0.00049589,120]
[354741121,1740661841045,-500.0,0.00049589,120]
[354741122,1740661841055,-500.0,0.00049589,120]
[354741123,1740661841064,-500.0,0.00049589,120]
[354741124,1740661841074,-558.33,0.00049589,120]
[354741125,1740661841083,-500.0,0.00049589,120]
[354741126,1740661841092,-1980.75,0.00049589,120]
[354741127,1740661841101,-500.0,0.00049589,120]
[354741128,1740661841111,-500.0,0.00049589,120]
[354741129,1740661841120,-500.0,0.00049589,120]
[354741130,1740661841130,-500.0,0.00049589,120]
[354741131,1740661841139,-500.0,0.00049589,120]
[354741132,1740661841148,-500.0,0.00049589,120]
[354741133,1740661841157,-811.27,0.00049589,120]
[354741134,1740661841166,-500.0,0.00049589,120]
[354741135,1740661841175,-2402.32,0.00049589,6]
[354741136,1740661841184,-500.0,0.00049589,120]
[354741137,1740661841194,-496.18497497,0.00049589,120]
[354741138,1740661841203,-500.0,0.00049589,120]
[354741139,1740661841212,-1624.97,0.00049589,120]
[354741140,1740661841222,-500.0,0.00049589,2]
[354741141,1740661841231,-500.0,0.00049589,120]
[354741142,1740661841240,-1500.0,0.00049724,120]
[354741143,1740661841250,-502.74891871,0.00049773,10]
[354741144,1740661841259,-500.0,0.00049773,10]
[354741145,1740661841268,-5000.0,0.000498,120]
[354741146,1740661841277,-1625.72895244,0.00049812,120]
[354741147,1740661841287,-508.91893336,0.00049863,120]
[354741148,1740661841296,-500.0,0.00049863,120]
[354741149,1740661841305,-2000.0,0.00049863,120]
[354741150,1740661841314,-500.0,0.00049863,120]
[354741151,1740661841323,-500.0,0.00049863,120]
[354741152,1740661841333,-500.0,0.00049863,120]
[354741153,1740661841341,-500.0,0.00049863,120]
[354741154,1740661841351,-875.0,0.00049863,2]
[354741155,1740661841360,-500.0,0.00049863,120]
[354741156,1740661841369,-500.0,0.00049863,120]
[354741157,1740661841378,-500.0,0.00049863,120]
[354741158,1740661841387,-500.0,0.00049863,120]
[354741159,1740661841397,-546.59,0.00049863,120]
[354741160,1740661841406,-500.0,0.00049863,120]
[354741161,1740661841416,-500.0,0.00049863,120]
[354741162,1740661841426,-500.0,0.00049863,120]
[354741163,1740661841435,-507.91,0.00049863,120]
[354741164,1740661841444,-500.0,0.00049863,120]
[354741165,1740661841454,-500.0,0.00049863,120]
[354741166,1740661841463,-237.88,0.00049863,120]
[354741167,1740661841472,-500.0,0.00049863,120]
[354741168,1740661841482,-500.0,0.00049863,120]
[354741169,1740661841491,-500.0,0.00049863,120]
[354741170,1740661841500,-500.0,0.00049863,120]
[354741171,1740661841509,-582.74,0.00049863,120]
[354741172,1740661841518,-2365.65,0.00049863,120]
[354741173,1740661841527,-500.0,0.00049863,120]
[354741174,1740661841536,-1946.76,0.00049863,120]
[354741175,1740661841546,-899.95,0.00049863,120]
[354741176,1740661841555,-500.0,0.00049863,120]
[354741177,1740661841564,-944.27,0.00049863,120]
[354741178,1740661841573,-500.0,0.00049863,120]
[354741179,1740661841582,-500.0,0.00049863,120]
[354741180,1740661841592,-500.0,0.00049863,120]
[354741181,1740661841601,-3143.02,0.00049863,120]
[354741182,1740661841610,-2425.78,0.00049863,120]
[354741183,1740661841619,-18013.26,0.00049863,7]
[354741184,1740661841629,-500.0,0.00049863,120]
[354741185,1740661841638,-500.0,0.00049863,120]
[354741186,1740661841647,-1184.37,0.00049863,120]
[354741187,1740661841656,-500.0,0.00049863,120]
[354741188,1740661841665,-937.16,0.00049863,120]
[354741189,1740661841675,-295.69,0.00049863,120]
[354741190,1740661841684,-726.94,0.00049863,120]
[354741191,1740661841694,-500.0,0.00049863,120]
[354741192,1740661841704,-500.0,0.00049863,120]
[354741193,1740661841713,-500.0,0.00049863,120]
[354741194,1740661841724,-500.0,0.00049863,120]
[354741195,1740661841733,-558.33,0.00049863,120]
[354741196,1740661841742,-500.0,0.00049863,120]
[354741197,1740661841751,-1980.75,0.00049863,120]
[354741198,1740661841760,-500.0,0.00049863,120]
[354741199,1740661841769,-500.0,0.00049863,120]
[354741200,1740661841778,-500.0,0.00049863,120]
[354741201,1740661841788,-500.0,0.00049863,120]
[354741202,1740661841797,-500.0,0.00049863,120]
[354741203,1740661841806,-811.27,0.00049863,120]
[354741204,1740661841815,-500.0,0.00049863,120]
[354741205,1740661841824,-500.0,0.00049863,120]
[354741206,1740661841835,-2402.32,0.00049863,6]
[354741207,1740661841845,-500.0,0.00049863,120]
[354741208,1740661841854,-1624.97,0.00049863,120]
[354741209,1740661841864,-500.0,0.00049863,2]
[354741210,1740661841873,-500.0,0.00049863,120]
[354741211,1740661841883,-8666.6,0.000499,120]
[354741212,1740661841893,-500.0,0.00049973,10]
[354741213,1740661841902,-500.0,0.00049973,10]
[354741214,1740661841911,-500.0,0.00049999,120]
[354741215,1740661841920,-166.71541956,0.00049999,2]
[354741216,1740661841930,-242.20417577,0.00049999,120]
[354741217,1740661841939,-232.4431763,0.0005,2]
[354741218,1740661841948,-4500.0,0.0005,120]
[354741219,1740661841958,-199946.78649576,0.0005,30]
[354741220,1740661841970,-158.99442547,0.0005,120]
[354741221,1740661841980,-150.0,0.0005,7]
[354741222,1740661841989,-150.0,0.0005,7]
[354741223,1740661841998,-150.0,0.0005,7]
[354741224,1740661842009,-150.0,0.0005,7]
[354741225,1740661842018,-150.0,0.0005,7]
[354741226,1740661842027,-150.0,0.0005,7]
[354741227,1740661842036,-150.0,0.0005,7]
[354741228,1740661842046,-150.0,0.0005,7]
[354741229,1740661842055,-150.0,0.0005,7]
[354741230,1740661842064,-150.0,0.0005,7]
[354741231,1740661842073,-150.0,0.0005,7]
[354741232,1740661842082,-500.0,0.00050136,120]
[354741233,1740661842092,-1938.17,0.00050136,120]
[354741234,1740661842101,-500.0,0.00050136,120]
[354741235,1740661842111,-521.52,0.00050136,120]
[354741236,1740661842121,-500.0,0.00050136,120]
[354741237,1740661842131,-875.0,0.00050136,2]
[354741238,1740661842141,-500.0,0.00050136,120]
[354741239,1740661842154,-500.0,0.00050136,120]
[354741240,1740661842164,-500.0,0.00050136,120]
[354741241,1740661842173,-500.0,0.00050136,120]
[354741242,1740661842274,-500.0,0.00050136,120]
[354741243,1740661842296,-500.0,0.00050136,120]
[354741244,1740661842305,-484.64,0.00050136,120]
[354741245,1740661842315,-500.0,0.00050136,120]
[354741246,1740661842324,-500.0,0.00050136,120]
[354741247,1740661842333,-500.0,0.00050136,120]
[354741248,1740661842343,-612.71,0.00050136,120]
[354741249,1740661842352,-476.84,0.00050136,120]
[354741250,1740661842361,-2365.65,0.00050136,120]
[354741251,1740661842370,-500.0,0.00050136,120]
[354741252,1740661842379,-1946.76,0.00050136,120]
[354741253,1740661842389,-899.95,0.00050136,120]
[354741254,1740661842398,-500.0,0.00050136,120]
[354741255,1740661842407,-944.27,0.00050136,120]
[354741256,1740661842417,-500.0,0.00050136,120]
[354741257,1740661842426,-500.0,0.00050136,120]
[354741258,1740661842436,-500.0,0.00050136,120]
[354741259,1740661842445,-3143.02,0.00050136,120]
[354741260,1740661842455,-2425.78,0.00050136,120]
[354741261,1740661842464,-18013.26,0.00050136,7]
[354741262,1740661842474,-500.0,0.00050136,120]
[354741263,1740661842483,-500.0,0.00050136,120]
[354741264,1740661842493,-1184.37,0.00050136,120]
[354741265,1740661842502,-500.0,0.00050136,120]
[354741266,1740661842512,-937.16,0.00050136,120]
[354741267,1740661842521,-726.94,0.00050136,120]
[354741268,1740661842531,-500.0,0.00050136,120]
[354741269,1740661842540,-500.0,0.00050136,120]
[354741270,1740661842550,-500.0,0.00050136,120]
[354741271,1740661842559,-500.0,0.00050136,120]
[354741272,1740661842568,-558.33,0.00050136,120]
[354741273,1740661842577,-171.58,0.00050136,120]
[354741274,1740661842587,-1980.75,0.00050136,120]
[354741275,1740661842596,-500.0,0.00050136,120]
[354741276,1740661842606,-500.0,0.00050136,120]
[354741277,1740661842615,-500.0,0.00050136,120]
[354741278,1740661842624,-585.39,0.00050136,120]
[354741279,1740661842633,-500.0,0.00050136,120]
[354741280,1740661842644,-811.27,0.00050136,120]
[354741281,1740661842653,-500.0,0.00050136,120]
[354741282,1740661842662,-500.0,0.00050136,120]
[354741283,1740661842672,-2402.32,0.00050136,6]
[354741284,1740661842681,-500.0,0.00050136,120]
[354741285,1740661842690,-1624.97,0.00050136,120]
[354741286,1740661842700,-524.62682534,0.00050136,2]
[354741287,1740661842709,-500.0,0.00050136,120]
[354741288,1740661842718,-500.0,0.00050173,10]
[354741289,1740661842727,-500.0,0.0005041,120]
[354741290,1740661842737,-500.0,0.0005041,120]
[354741291,1740661842746,-500.0,0.0005041,120]
[354741292,1740661842755,-875.0,0.0005041,2]
[354741294,1740661842764,-500.0,0.0005041,120]
[354741296,1740661842773,-500.0,0.0005041,120]
[354741298,1740661842782,-500.0,0.0005041,120]
[354741299,1740661842791,-500.0,0.0005041,120]
[354741300,1740661842800,-500.0,0.0005041,120]
[354741301,1740661842811,-500.0,0.0005041,120]
[354741302,1740661842820,-500.0,0.0005041,120]
[354741303,1740661842829,-252.73,0.0005041,120]
[354741304,1740661842838,-2365.65,0.0005041,120]
[354741305,1740661842847,-569.87075183,0.0005041,120]
[354741306,1740661842856,-1946.76,0.0005041,120]
[354741307,1740661842866,-899.95,0.0005041,120]
[354741308,1740661842875,-500.0,0.0005041,120]
[354741309,1740661842884,-944.27,0.0005041,120]
[354741310,1740661842893,-500.0,0.0005041,120]
[354741311,1740661842902,-500.0,0.0005041,120]
[354741312,1740661842912,-500.0,0.0005041,120]
[354741313,1740661842921,-3143.02,0.0005041,120]
[354741314,1740661842930,-2425.78,0.0005041,120]
[354741315,1740661842940,-18013.26,0.0005041,7]
[354741316,1740661842949,-500.0,0.0005041,120]
[354741317,1740661842960,-500.0,0.0005041,120]
[354741318,1740661842971,-1184.37,0.0005041,120]
[354741319,1740661842980,-540.4,0.0005041,120]
[354741320,1740661842990,-937.16,0.0005041,120]
[354741321,1740661843000,-726.94,0.0005041,120]
[354741322,1740661843010,-500.0,0.0005041,120]
[354741323,1740661843020,-500.0,0.0005041,120]
[354741324,1740661843029,-296.04,0.0005041,120]
[354741325,1740661843040,-500.0,0.0005041,120]
[354741326,1740661843050,-558.33,0.0005041,120]
[354741327,1740661843059,-1980.75,0.0005041,120]
[354741329,1740661843068,-500.0,0.0005041,120]
[354741331,1740661843077,-227.77,0.0005041,120]
[354741333,1740661843086,-500.0,0.0005041,120]
[354741335,1740661843096,-500.0,0.0005041,120]
[354741336,1740661843106,-811.27,0.0005041,120]
[354741337,1740661843116,-500.0,0.0005041,120]
[354741338,1740661843126,-500.0,0.0005041,120]
[354741339,1740661843136,-2402.32,0.0005041,6]
[354741340,1740661843145,-500.0,0.0005041,120]
[354741341,1740661843160,-1624.97,0.0005041,120]
[354741342,1740661843170,-500.0,0.0005041,120]
[354741343,1740661843179,-213.00076221,0.00050452,11]
[354741344,1740661843188,-500.0,0.00050684,120]
[354741345,1740661843198,-500.0,0.00050684,120]
[354741346,1740661843207,-500.0,0.00050684,120]
[354741347,1740661843217,-875.0,0.00050684,2]
[354741349,1740661843227,-500.0,0.00050684,120]
[354741350,1740661843236,-500.0,0.00050684,120]
[354741351,1740661843245,-500.0,0.00050684,120]
[354741352,1740661843255,-500.0,0.00050684,120]
[354741353,1740661843264,-500.0,0.00050684,120]
[354741354,1740661843274,-500.0,0.00050684,120]
[354741355,1740661843284,-500.0,0.00050684,120]
[354741356,1740661843294,-2365.65,0.00050684,120]
[354741357,1740661843304,-1946.76,0.00050684,120]
[354741358,1740661843313,-899.95,0.00050684,120]
[354741359,1740661843323,-500.0,0.00050684,120]
[354741360,1740661843332,-944.27,0.00050684,120]
[354741361,1740661843342,-500.0,0.00050684,120]
[354741362,1740661843351,-500.0,0.00050684,120]
[354741363,1740661843361,-500.0,0.00050684,120]
[354741364,1740661843371,-3143.02,0.00050684,120]
[354741365,1740661843380,-2425.78,0.00050684,120]
[354741366,1740661843389,-18013.26,0.00050684,7]
[354741367,1740661843399,-500.0,0.00050684,120]
[354741368,1740661843408,-364.89,0.00050684,120]
[354741369,1740661843418,-1184.37,0.00050684,120]
[354741370,1740661843427,-937.16,0.00050684,120]
[354741371,1740661843437,-726.94,0.00050684,120]
[354741372,1740661843446,-500.0,0.00050684,120]
[354741373,1740661843455,-500.0,0.00050684,120]
[354741374,1740661843465,-500.0,0.00050684,120]
[354741375,1740661843475,-558.33,0.00050684,120]
[354741376,1740661843485,-1980.75,0.00050684,120]
[354741377,1740661843494,-327.28,0.00050684,120]
[354741378,1740661843503,-500.0,0.00050684,120]
[354741379,1740661843512,-500.0,0.00050684,120]
[354741380,1740661843522,-811.27,0.00050684,120]
[354741381,1740661843531,-500.0,0.00050684,120]
[354741382,1740661843541,-500.0,0.00050684,120]
[354741383,1740661843550,-2402.32,0.00050684,6]
[354741384,1740661843560,-1624.97,0.00050684,120]
[354741385,1740661843569,-500.0,0.00050684,120]
[354741386,1740661843579,-770.0,0.00050717,15]
[354741387,1740661843588,-1000.0,0.00050721,10]
[354741388,1740661843597,-1983.63260266,0.00050926,2]
[354741389,1740661843606,-179.0,0.00050945,2]
[354741390,1740661843615,-500.0,0.00050958,120]
[354741391,1740661843626,-500.0,0.00050958,120]
[354741392,1740661843639,-875.0,0.00050958,2]
[354741393,1740661843651,-500.0,0.00050958,120]
[354741395,1740661843664,-500.0,0.00050958,120]
[354741396,1740661843676,-295.43,0.00050958,120]
[354741397,1740661843688,-500.0,0.00050958,120]
[354741398,1740661843698,-187.34,0.00050958,120]
[354741399,1740661843709,-500.0,0.00050958,120]
[354741400,1740661843721,-500.0,0.00050958,120]
[354741401,1740661843733,-2365.65,0.00050958,120]
[354741402,1740661843744,-1946.76,0.00050958,120]
[354741403,1740661843755,-899.95,0.00050958,120]
[354741404,1740661843766,-500.0,0.00050958,120]
[354741405,1740661843777,-944.27,0.00050958,120]
[354741406,1740661843789,-500.0,0.00050958,120]
[354741407,1740661843800,-500.0,0.00050958,120]
[354741408,1740661843812,-500.0,0.00050958,120]
[354741409,1740661843824,-3143.02,0.00050958,120]
[354741410,1740661843836,-2425.78,0.00050958,120]
[354741411,1740661843848,-18013.26,0.00050958,7]
[354741412,1740661843859,-500.0,0.00050958,120]
[354741413,1740661843870,-1184.37,0.00050958,120]
[354741414,1740661843881,-937.16,0.00050958,120]
[354741415,1740661843892,-726.94,0.00050958,120]
[354741416,1740661843903,-500.0,0.00050958,120]
[354741417,1740661843914,-500.0,0.00050958,120]
[354741418,1740661843925,-500.0,0.00050958,120]
[354741419,1740661843937,-558.33,0.00050958,120]
[354741420,1740661843949,-1683.038753,0.00050958,120]
[354741421,1740661844179,-432.73892352,0.00049215,2]
[354741422,1740661844194,-1329.0306444,0.00049215,2]
[354741423,1740661844207,-744.79,0.00049315,120]
[354741424,1740661844218,-1761.76956788,0.00049489,2]
[354741425,1740661844228,-744.79,0.00049589,120]
[354741426,1740661844240,-1761.76956788,0.00049763,2]
[354741427,1740661844251,-744.79,0.00049863,120]
[354741428,1740661844261,-744.79,0.00050136,120]
[354741429,1740661844273,-744.79,0.0005041,120]
[354741430,1740661844285,-744.79,0.00050684,120]
[354741431,1740661844295,-297.711247,0.00050958,120]
[354741432,1740661844305,-500.0,0.00050958,120]
[354741433,1740661844315,-500.0,0.00050958,120]
[354741434,1740661844325,-811.27,0.00050958,120]
[354741435,1740661844336,-367.37,0.00050958,120]
[354741436,1740661844347,-500.0,0.00050958,120]
[354741437,1740661844358,-2402.32,0.00050958,6]
[354741438,1740661844368,-1624.97,0.00050958,120]
[354741439,1740661844379,-500.0,0.00050958,120]
[354741440,1740661844389,-744.79,0.00050958,120]
[354741441,1740661844400,-500.0,0.00051,30]
[354741442,1740661844411,-500.0,0.00051,30]
[354741443,1740661844422,-500.0,0.00051,30]
[354741444,1740661844432,-500.0,0.00051,30]
[354741445,1740661844443,-387.84,0.00051,30]
[354741446,1740661844454,-350.94000037,0.00051,7]
[354741447,1740661844464,-199.1617,0.00051,120]
[354741448,1740661844475,-2533.16316035,0.0005104,120]
[354741449,1740661844485,-3000.0,0.00051044,30]
[354741450,1740661844496,-2430.569,0.00051045,120]
[354741452,1740661844506,-152.1841952,0.00051045,30]
[354741453,1740661844517,-467.54351707,0.00051058,120]
[354741454,1740661844527,-352.52907209,0.00051058,31]
[354741455,1740661844538,-29253.06524582,0.00051059,2]
[354741456,1740661844551,-9525.06601831,0.00051059,2]
[354741466,1740662981268,150.0,0.00051056,30]
[354741524,1740663032774,-2586.81120403,0.00036,2]
[354741525,1740663032784,-271.49945784,0.000362,98]
[354741526,1740663032794,-200.49481956,0.0003621,2]
[354741528,1740663032804,-260.78476416,0.0003624,2]
[354741529,1740663032814,-486.7867382,0.0004217,2]
[354741530,1740663032823,-273.054895,0.00042254,2]
[354741531,1740663032833,-175.23000215,0.00042528,2]
[354741532,1740663032842,-19450.97064254,0.000426,120]
[354741533,1740663032854,-405.04000001,0.000426,120]
[354741644,1740663046937,-4249.33109999,0.000426,120]
[354741645,1740663047001,-4324.08292552,0.000426,120]
[354741647,1740663164377,2000.0,0.00051056,30]
[354741648,1740663164630,2000.0,0.00051056,30]
[354741649,1740663164926,851.5,0.00051056,30]
[354741650,1740663172035,-21570.57533194,0.000426,120]
[354741651,1740663172062,-271.49945784,0.00048308,120]
[354741652,1740663172087,-500.0,0.00049315,120]
[354741653,1740663172114,-500.0,0.00049315,120]
[354741654,1740663172139,-500.0,0.00049315,120]
[354741655,1740663172166,-500.0,0.00049315,120]
[354741656,1740663172192,-252.73,0.00049315,120]
[354741657,1740663172217,-500.0,0.00049315,120]
[354741658,1740663172242,-497.75561076,0.00049315,120]
[354741659,1740663172266,-1286.43,0.00049315,120]
[354741660,1740663172290,-500.0,0.00049315,120]
[354741661,1740663172316,-500.0,0.00049315,120]
[354741662,1740663172342,-500.0,0.00049315,120]
[354741663,1740663172371,-171.58,0.00049315,120]
[354741664,1740663172396,-500.0,0.00049315,120]
[354741665,1740663172422,-500.0,0.00049315,120]
[354741666,1740663172448,-500.0,0.00049315,120]
[354741667,1740663172475,-500.0,0.00049315,120]
[354741668,1740663172501,-500.0,0.00049315,120]
[354741669,1740663172527,-500.0,0.00049315,120]
[354741670,1740663172552,-2242.0,0.00049315,120]
[354741671,1740663172578,-521.52,0.00049315,120]
[354741672,1740663172608,-585.39,0.00049315,120]
[354741673,1740663172633,-500.0,0.00049315,120]
[354741674,1740663172659,-500.0,0.00049315,120]
[354741675,1740663172685,-500.0,0.00049315,120]
[354741676,1740663172712,-676.06,0.00049315,120]
[354741677,1740663172737,-500.0,0.00049315,120]
[354741678,1740663172762,-500.0,0.00049315,120]
[354741679,1740663172788,-500.0,0.00049315,120]
[354741680,1740663172814,-2069.95,0.00049315,120]
[354741681,1740663172839,-1875.0,0.00049315,120]
[354741682,1740663172867,-500.0,0.00049315,120]
[354741683,1740663172893,-527.56,0.00049315,120]
[354741684,1740663172920,-1938.17,0.00049315,120]
[354741685,1740663172945,-787.46,0.00049315,120]
[354741686,1740663172970,-500.0,0.00049315,120]
[354741687,1740663172995,-500.0,0.00049315,120]
[354741688,1740663173020,-500.0,0.00049315,120]
[354741689,1740663173045,-2725.73,0.00049315,120]
[354741690,1740663173069,-500.0,0.00049315,120]
[354741691,1740663173094,-500.0,0.00049315,120]
[354741692,1740663173122,-2122.55,0.00049315,120]
[354741693,1740663173146,-12704.54,0.00049315,120]
[354741694,1740663173171,-826.23,0.00049315,120]
[354741695,1740663173195,-500.0,0.00049315,120]
[354741696,1740663173220,-500.0,0.00049315,120]
[354741697,1740663173246,-2986.14,0.00049315,120]
[354741698,1740663173271,-500.0,0.00049315,120]
[354741699,1740663173295,-649.18,0.00049315,120]
[354741700,1740663173320,-636.07,0.00049315,120]